bitfinex/quotes_SOLUSD_20250508
["timestamp","ask_amount","ask_price","bid_price","bid_amount"]
[1746680995936,26.0,150.99,150.96,11.5934426]
[1746680996743,6.62339382,150.98,150.96,11.5934426]
[1746680998344,6.62339382,150.98,150.97,11.5934426]
[1746680999539,32.62309637,150.99,150.97,11.5934426]
[1746680999843,32.62309637,150.99,150.98,11.5934426]
[1746681000936,22.55519502,151.01,150.98,11.5934426]
[1746681000937,32.0,151.01,150.98,11.5934426]
[1746681001133,32.0,151.01,151.0,11.5934426]
[1746681001840,38.62225127,151.01,151.0,11.5934426]
[1746681002435,6.0,151.01,151.0,11.5934426]
[1746681002927,12.622078,151.01,151.0,11.5934426]
[1746681003129,6.0,151.01,151.0,11.5934426]
[1746681004165,12.622078,151.01,151.0,11.5934426]
[1746681004343,6.0,151.01,151.0,11.5934426]
[1746681006527,6.0,151.01,150.99,1.501]
[1746681006920,6.0,151.01,151.0,11.5934426]
[1746681010631,6.0,151.01,150.99,1.501]
[1746681011161,6.0,151.01,150.97,16.92]
[1746681011351,12.62249045,151.01,151.0,11.5934426]
[1746681016056,12.62249045,151.01,150.95,51.12804668]
[1746681016247,12.62249045,151.01,151.0,11.5934426]
[1746681016660,12.62249045,151.01,150.95,44.5034]
[1746681017033,12.62249045,151.01,150.99,11.5934426]
[1746681018565,12.62249045,151.01,151.0,11.5934426]
[1746681020353,12.62249045,151.01,151.0,11.58790031]
[1746681020658,12.62249045,151.01,150.94,6.62495145]
[1746681020956,12.62249045,151.01,150.98,11.58790031]
[1746681021144,12.62249045,151.01,151.0,11.58790031]
[1746681026250,12.62249045,151.01,150.99,11.58790031]
[1746681027443,12.62249045,151.01,151.0,11.58790031]
[1746681030338,6.0,151.01,151.0,11.58790031]
[1746681031380,16.54639165,151.1,151.0,37.97091717]
[1746681031559,134.6,151.11,151.02,11.58790031]
[1746681031560,6.61857171,151.09,151.02,11.58790031]
[1746681031745,6.61857171,151.09,151.08,11.58790031]
[1746681032868,6.61813368,151.1,151.08,11.58790031]
[1746681033171,6.61813368,151.1,151.09,11.58790031]
[1746681033377,6.61813368,151.1,151.08,11.58790031]
[1746681035669,30.22597681,151.09,151.03,11.57632795]
[1746681035864,11.57632795,151.08,151.03,11.57632795]
[1746681036251,18.19577588,151.07,151.03,11.57632795]
[1746681036451,34.74439572,151.07,151.03,11.57632795]
[1746681036688,23.16806777,151.07,151.03,11.57632795]
[1746681037464,23.16806777,151.07,151.04,11.57632795]
[1746681037652,23.16806777,151.07,151.0,8.1726]
[1746681037978,34.74439572,151.07,151.0,8.1726]
[1746681038191,6.62032439,151.05,151.02,11.57632795]
[1746681040786,6.62032439,151.05,151.01,11.57632795]
[1746681040988,6.62032439,151.05,151.02,11.57632795]
[1746681041478,6.62032439,151.05,151.03,11.57632795]
[1746681041706,6.62032439,151.05,151.04,11.57632795]
[1746681041983,6.61944793,151.07,151.04,11.57632795]
[1746681042284,6.61944793,151.07,151.05,11.57632795]
[1746681043188,6.61900979,151.08,151.05,11.57632795]
[1746681044786,134.6,151.14,151.07,11.57632795]
[1746681044967,141.21653246,151.14,151.11,11.57632795]
[1746681045170,167.21653246,151.14,151.11,11.57632795]
[1746681045378,141.21653246,151.14,151.11,11.57632795]
[1746681045685,167.21653246,151.14,151.11,11.57632795]
[1746681046712,134.6,151.14,151.11,11.57632795]
[1746681046892,6.61586078,151.16,151.13,11.57632795]
[1746681047483,18.19218873,151.16,151.12,11.57632795]
[1746681047882,6.61586078,151.16,151.12,11.57632795]
[1746681048774,6.61586078,151.16,151.11,6.61763403]
[1746681048979,6.61586078,151.16,151.12,11.57632795]
[1746681049496,134.6,151.18,151.13,11.57632795]
[1746681049794,18.64964886,151.2,151.16,11.57632795]
[1746681050001,18.64964886,151.2,151.15,11.57632795]
[1746681050170,11.57632795,151.19,151.15,11.57632795]
[1746681050570,18.64964886,151.2,151.17,11.56424268]
[1746681050781,25.26346885,151.2,151.17,11.56424268]
[1746681053003,25.26346885,151.2,151.13,6.61679093]
[1746681053205,25.26346885,151.2,151.17,11.56424268]
[1746681054006,25.26346885,151.2,151.13,6.61679093]
[1746681054307,25.26346885,151.2,151.17,11.56424268]
[1746681055111,25.26346885,151.2,151.13,6.61679093]
[1746681055311,26.0,151.19,151.11,6.61769571]
[1746681055601,18.64964886,151.18,151.1,8.24957982]
[1746681055908,18.64964886,151.18,151.15,11.56424268]
[1746681056084,153.24964886,151.18,151.15,11.56424268]
[1746681056406,6.61506912,151.17,151.1,8.24957982]
[1746681056729,6.61506912,151.17,151.15,11.56424268]
[1746681057080,25.26471798,151.17,151.16,11.56424268]
[1746681057509,141.21478077,151.18,151.16,11.56424268]
[1746681057701,141.21478077,151.18,151.17,11.56424268]
[1746681060201,134.6,151.18,151.17,11.56424268]
[1746681060592,25.26312527,151.21,151.17,11.56424268]
[1746681060914,25.26312527,151.21,151.19,11.56424268]
[1746681061088,6.6130314,151.22,151.2,11.56424268]
[1746681061497,6.6130314,151.22,151.21,11.56424268]
[1746681061899,6.6130314,151.22,151.2,11.56424268]
[1746681062207,6.6130314,151.22,151.16,1.6511]
[1746681062208,6.6130314,151.22,151.21,11.56424268]
[1746681062713,185.8621921,151.23,151.21,11.56424268]
[1746681062894,167.21254324,151.23,151.22,11.56424268]
[1746681063087,160.6,151.23,151.22,11.56424268]
[1746681063290,167.21244462,151.23,151.16,8.26649291]
[1746681063708,167.21244462,151.23,151.21,11.56424268]
[1746681063917,167.21244462,151.23,151.16,8.26649291]
[1746681064119,167.21244462,151.23,151.2,11.56424268]
[1746681065524,167.21244462,151.23,151.19,11.56424268]
[1746681065714,167.21244462,151.23,151.16,8.26649291]
[1746681065906,167.21244462,151.23,151.19,11.56424268]
[1746681067306,167.21244462,151.23,151.2,11.56424268]
[1746681070827,167.21244462,151.23,151.21,11.56424268]
[1746681071314,6.61208772,151.24,151.22,11.56424268]
[1746681072316,6.61208772,151.24,151.21,11.56424268]
[1746681072515,23.14210623,151.24,151.17,6.1416]
[1746681072722,23.14210623,151.24,151.2,11.56424268]
[1746681074323,18.64964886,151.23,151.19,11.56424268]
[1746681074519,18.64964886,151.21,151.16,1.6511]
[1746681074727,153.24964886,151.21,151.16,11.56424268]
[1746681075100,153.24964886,151.21,151.17,11.56424268]
[1746681075308,153.24964886,151.21,151.13,23.3754]
[1746681075508,153.24964886,151.21,151.15,11.56424268]
[1746681075711,153.24964886,151.21,151.16,11.56424268]
[1746681076103,153.24964886,151.21,151.17,11.56424268]
[1746681076533,6.61375661,151.2,151.13,23.3754]
[1746681076820,18.64964886,151.19,151.15,11.56424268]
[1746681077426,18.64964886,151.17,151.12,1.5016]
[1746681077636,30.21817755,151.17,151.13,11.56852869]
[1746681078232,30.21817755,151.17,151.12,13.07012869]
[1746681078416,30.21817755,151.17,151.12,11.56852869]
[1746681078618,18.64964886,151.15,151.12,11.56852869]
[1746681079529,18.64964886,151.15,151.13,11.56852869]
[1746681080330,25.26598305,151.15,151.13,11.56852869]
[1746681080626,25.26598305,151.15,151.13,11.56954056]
[1746681082025,25.26598305,151.15,151.09,22.8509]
[1746681082224,25.26598305,151.15,151.09,16.82]
[1746681082535,25.23372789,151.15,151.11,11.56954056]
[1746681085109,134.6,151.14,151.1,11.56954056]
[1746681085311,134.6,151.14,151.09,11.56954056]
[1746681085512,134.6,151.14,151.1,11.56954056]
[1746681086532,18.64964886,151.12,151.1,11.56954056]
[1746681087033,141.21647868,151.14,151.11,11.56954056]
[1746681087332,134.6,151.14,151.13,11.56954056]
[1746681087704,26.0,151.11,151.08,1.6413]
[1746681087911,26.0,151.11,151.05,22.8957]
[1746681088113,26.0,151.11,151.09,11.56954056]
[1746681088429,26.0,151.11,151.05,22.8957]
[1746681088626,6.61813368,151.1,151.05,22.8957]
[1746681088825,6.61813368,151.1,151.09,11.56954056]
[1746681090314,32.61784686,151.11,151.09,11.56954056]
[1746681091756,26.0,151.11,151.1,11.56954056]
[1746681093837,26.0,151.11,151.07,6.61910793]
[1746681094035,6.61813368,151.1,151.05,6.0757]
[1746681094226,26.0,151.11,151.09,11.56954056]
[1746681094532,26.0,151.11,151.1,11.56954056]
[1746681094729,6.61765147,151.12,151.1,11.56954056]
[1746681094934,32.61765147,151.12,151.11,11.56954056]
[1746681095633,32.61765147,151.12,151.11,11.57340903]
[1746681095820,6.61631491,151.15,151.11,11.57340903]
[1746681096027,141.21566817,151.16,151.14,11.57340903]
[1746681096228,141.21566817,151.16,151.15,11.57340903]
[1746681096619,141.21566817,151.16,151.13,11.57340903]
[1746681096813,18.64964886,151.15,151.08,1.6469]
[1746681097122,18.64964886,151.15,151.11,11.57340903]
[1746681097332,18.64964886,151.15,151.12,11.57340903]
[1746681098145,44.64964886,151.13,151.08,1.6469]
[1746681098331,30.22305789,151.1,151.04,1.579]
[1746681098529,30.22305789,151.1,151.06,11.57340903]
[1746681098850,18.64964886,151.11,151.07,11.57340903]
[1746681099024,11.57340903,151.1,151.04,1.579]
[1746681099230,30.22305789,151.11,151.07,11.57340903]
[1746681099749,18.64964886,151.11,151.07,18.52619022]
[1746681100635,26.0,151.07,151.04,1.579]
[1746681100838,26.0,151.07,151.06,18.52619022]
[1746681101147,26.0,151.07,151.04,1.579]
[1746681101351,26.0,151.07,151.06,18.52619022]
[1746681106756,32.61944793,151.07,151.06,18.52619022]
[1746681106954,32.61944793,151.07,150.98,56.62339382]
[1746681107248,32.61944793,151.07,151.06,18.52619022]
[1746681107435,26.0,151.07,151.06,18.52619022]
[1746681107947,26.0,151.07,150.99,1.6106]
[1746681108128,32.6195026,151.07,150.99,1.6106]
[1746681108332,32.6195026,151.07,151.06,18.52619022]
[1746681109767,49.16812244,151.07,150.99,1.6106]
[1746681109963,49.16812244,151.07,151.03,18.52619022]
[1746681110144,32.6195026,151.07,151.06,18.52619022]
[1746681111667,32.6195026,151.07,150.99,8.23347748]
[1746681111830,32.6195026,151.07,151.06,18.52619022]
[1746681113265,32.6195026,151.07,151.0,6.62237519]
[1746681113266,32.6195026,151.07,151.05,18.52619022]
[1746681114769,49.16812244,151.07,150.99,1.6106]
[1746681114966,49.16812244,151.07,151.03,18.52619022]
[1746681115555,49.16812244,151.07,151.04,18.52619022]
[1746681116968,49.16812244,151.07,150.99,8.23344968]
[1746681116969,67.69431266,151.07,150.99,1.6106]
[1746681117146,26.0,151.04,151.02,18.52619022]
[1746681117347,26.0,151.04,151.03,18.52619022]
[1746681117669,26.0,151.04,151.02,18.52619022]
[1746681118576,26.0,151.03,150.99,1.6106]
[1746681118870,6.62163951,151.02,151.01,18.52619022]
[1746681119742,23.1757383,151.02,150.99,1.6106]
[1746681119943,23.1757383,151.02,150.99,20.13679022]
[1746681120142,23.1757383,151.02,151.0,18.52619022]
[1746681120651,23.1757383,151.02,151.01,18.52619022]
[1746681121773,23.1757383,151.02,151.01,11.5857853]
[1746681122144,6.62163951,151.02,151.01,11.5857853]
[1746681123475,6.62163951,151.02,151.0,11.5857853]
[1746681123868,23.1757383,151.02,150.99,1.6106]
[1746681124073,23.1757383,151.02,150.99,13.1963853]
[1746681124294,23.1757383,151.02,151.0,11.5857853]
[1746681125849,23.1757383,151.02,150.99,13.1963853]
[1746681126449,23.1757383,151.02,150.96,24.925]
[1746681126649,23.1757383,151.02,150.99,11.5857853]
[1746681128385,23.1757383,151.02,150.96,24.925]
[1746681128585,26.0,151.0,150.96,8.125]
[1746681128785,23.1757383,151.02,150.99,11.5857853]
[1746681129290,49.1757383,151.02,150.99,11.5857853]
[1746681131196,49.1757383,151.02,150.96,8.125]
[1746681131489,23.1757383,151.02,150.99,11.5857853]
[1746681132692,23.1757383,151.02,150.96,8.125]
[1746681132861,23.1757383,151.02,150.99,11.5857853]
[1746681133281,23.1757383,151.02,150.96,8.125]
[1746681133471,23.1757383,151.02,150.98,11.5857853]
[1746681134491,34.7615236,151.02,150.96,8.125]
[1746681134867,34.7615236,151.02,150.98,11.5857853]
[1746681135391,23.1757383,151.02,150.99,11.5857853]
[1746681136991,23.1757383,151.02,150.96,8.125]
[1746681136992,26.0,150.99,150.98,11.5857853]
[1746681137364,16.55409879,151.02,150.98,11.5857853]
[1746681137572,16.55409879,151.02,150.99,11.5857853]
[1746681139492,23.1757383,151.02,150.99,11.5857853]
[1746681141679,6.62163951,151.02,150.99,11.5857853]
[1746681141879,6.62163951,151.02,151.0,11.5857853]
[1746681142088,6.62163951,151.02,151.01,11.5857853]
[1746681142690,6.62163951,151.02,151.0,11.5857853]
[1746681142885,6.62163951,151.02,150.97,6.6297]
[1746681143097,6.62120108,151.03,151.0,11.5857853]
[1746681143280,6.62120108,151.03,151.02,11.5857853]
[1746681143789,6.62120108,151.03,150.97,13.25335495]
[1746681144091,6.62120108,151.03,151.0,11.5857853]
[1746681145095,26.0,151.02,150.97,6.62380201]
[1746681145269,26.0,151.01,150.97,11.5857853]
[1746681145470,6.62076271,151.04,151.0,11.5857853]
[1746681145679,6.62076271,151.04,151.03,11.5857853]
[1746681145877,6.62076271,151.04,151.02,11.5857853]
[1746681146387,6.62076271,151.04,150.97,0.14216157]
[1746681146593,6.62076271,151.04,151.02,11.5857853]
[1746681146822,6.62032439,151.05,151.02,11.5857853]
[1746681147588,6.62032439,151.05,151.03,11.5857853]
[1746681149295,6.61988613,151.06,151.03,11.5857853]
[1746681151197,6.61988613,151.06,151.04,11.5857853]
[1746681152278,18.20567143,151.06,151.01,1.503]
[1746681152484,11.5857853,151.05,151.01,13.0887853]
[1746681152880,11.5857853,151.04,151.01,1.503]
[1746681153200,11.5857853,151.04,150.99,17.6167853]
[1746681153692,11.5857853,151.03,150.97,1.532]
[1746681153901,11.5857853,151.03,150.99,11.5857853]
[1746681154990,6.62163951,151.02,150.99,11.5857853]
[1746681157511,18.20742481,151.02,150.98,11.5857853]
[1746681157819,18.20742481,151.02,150.97,1.532]
[1746681158019,18.20742481,151.02,150.98,11.5857853]
[1746681160012,11.5857853,151.01,150.97,13.1177853]
[1746681161607,6.62251655,151.0,150.97,13.1177853]
[1746681163902,6.62251655,151.0,150.97,1.532]
[1746681164099,6.62251655,151.0,150.97,13.1177853]
[1746681164609,16.55409879,151.02,150.97,13.1177853]
[1746681164913,11.5857853,151.01,150.97,13.1177853]
[1746681165713,6.62251655,151.0,150.97,13.1177853]
[1746681166102,6.62251655,151.0,150.97,1.532]
[1746681166310,6.62251655,151.0,150.97,13.1177853]
[1746681169128,6.62251655,151.0,150.97,1.532]
[1746681169300,49.17880794,151.0,150.97,11.5857853]
[1746681169613,6.62251655,151.0,150.97,11.5857853]
[1746681171212,6.62251655,151.0,150.94,16.72]
[1746681171416,18.20830185,151.0,150.94,16.72]
[1746681171799,18.20830185,151.0,150.96,11.5857853]
[1746681173317,34.76459324,151.0,150.94,16.72]
[1746681173520,23.17880794,151.0,150.96,11.5857853]
[1746681173732,34.76459324,151.0,150.96,11.5857853]
[1746681174618,11.5857853,150.97,150.93,1.6392]
[1746681174820,11.5857853,150.96,150.93,1.6392]
[1746681175008,11.5857853,150.97,150.93,1.6392]
[1746681175409,6.62471016,150.95,150.93,1.6392]
[1746681175921,6.62471016,150.95,150.93,13.2249853]
[1746681176418,6.62471016,150.95,150.93,1.6392]
[1746681178429,6.62471016,150.95,150.92,11.5857853]
[1746681179230,6.62471016,150.95,150.91,6.4842]
[1746681179535,0.14216157,150.85,150.75,0.9141178]
[1746681179711,26.0,150.86,150.75,0.9141178]
[1746681179712,11.5857853,150.83,150.75,0.9141178]
[1746681179904,18.64964886,150.82,150.78,11.5857853]
[1746681180106,37.5857853,150.83,150.77,11.5857853]
[1746681180307,30.23543416,150.79,150.75,0.9141178]
[1746681180606,11.5857853,150.82,150.77,11.5857853]
[1746681180808,18.79181043,150.83,150.78,11.5857853]
[1746681180809,30.23543416,150.83,150.78,11.5857853]
[1746681181019,30.23543416,150.83,150.75,0.9141178]
[1746681181202,30.23543416,150.83,150.77,11.5857853]
[1746681181404,6.63042036,150.82,150.77,11.5857853]
[1746681181601,6.63042036,150.82,150.78,11.5857853]
[1746681181835,6.63042036,150.82,150.78,18.59200647]
[1746681182128,32.62964192,150.84,150.8,18.59200647]
[1746681182311,51.22164839,150.84,150.79,18.59200647]
[1746681182713,32.62964192,150.84,150.8,18.59200647]
[1746681183323,18.59200647,150.83,150.78,18.59200647]
[1746681183520,6.6301786,150.83,150.79,18.59200647]
[1746681183932,6.6301786,150.83,150.75,36.22612427]
[1746681184130,32.62962567,150.84,150.81,18.59200647]
[1746681184317,26.0,150.84,150.81,18.59200647]
[1746681184631,26.0,150.85,150.77,8.2971]
[1746681185022,26.0,150.85,150.81,18.59200647]
[1746681185209,26.0,150.85,150.82,18.59200647]
[1746681185405,25.2204081,150.87,150.82,18.59200647]
[1746681185612,32.62840163,150.87,150.83,18.59200647]
[1746681186420,32.62840163,150.87,150.84,18.59200647]
[1746681187040,32.62840163,150.87,150.83,18.59200647]
[1746681187332,51.2204081,150.87,150.82,18.59200647]
[1746681187923,51.2204081,150.87,150.83,18.59200647]
[1746681188103,32.62840163,150.87,150.83,18.59200647]
[1746681188306,26.0,150.87,150.83,18.59200647]
[1746681188535,26.0,150.87,150.84,18.59200647]
[1746681188832,26.0,150.87,150.83,18.59200647]
[1746681189130,32.62840626,150.87,150.83,18.59200647]
[1746681189338,26.0,150.89,150.85,18.59200647]
[1746681189626,25.21942836,150.89,150.85,18.59200647]
[1746681190213,25.21942836,150.89,150.84,18.59200647]
[1746681190604,18.59200647,150.88,150.84,18.59200647]
[1746681191513,25.21942836,150.89,150.84,18.59200647]
[1746681191831,18.59200647,150.89,150.85,18.59200647]
[1746681192020,44.59200647,150.9,150.85,18.59200647]
[1746681192219,18.59200647,150.89,150.84,18.59200647]
[1746681192610,18.59200647,150.89,150.85,18.59200647]
[1746681192806,51.21904002,150.9,150.86,18.59200647]
[1746681193034,44.59200647,150.9,150.86,18.59200647]
[1746681193212,51.21914033,150.9,150.86,18.59200647]
[1746681193930,51.21914033,150.9,150.85,18.59200647]
[1746681195028,18.59200647,150.89,150.81,16.57715005]
[1746681195249,18.59200647,150.89,150.82,0.14216157]
[1746681195431,18.59200647,150.89,150.85,18.59200647]
[1746681195631,18.59200647,150.89,150.82,6.77258193]
[1746681195826,18.59200647,150.89,150.85,18.59200647]
[1746681196742,51.21914033,150.9,150.86,18.59200647]
[1746681196939,18.64964886,150.92,150.87,18.59200647]
[1746681197140,18.59200647,150.91,150.83,6.62998077]
[1746681197449,18.59200647,150.91,150.87,18.59200647]
[1746681198947,33.30153977,150.96,150.89,18.59200647]
[1746681199145,18.59200647,150.92,150.88,18.59200647]
[1746681199443,18.59200647,150.92,150.86,1.6631]
[1746681199645,18.59200647,150.91,150.87,18.59200647]
[1746681199957,24.4823,150.9,150.75,7.54745013]
[1746681200157,18.59200647,150.84,150.79,18.59200647]
[1746681200318,18.59200647,150.85,150.79,18.59200647]
[1746681200822,18.59200647,150.82,150.75,7.54745013]
[1746681201133,18.59200647,150.82,150.77,18.59200647]
[1746681201354,6.63055067,150.82,150.77,18.59200647]
[1746681201526,25.22255714,150.82,150.77,18.59200647]
[1746681202516,6.63055067,150.82,150.78,18.59200647]
[1746681202931,18.59200647,150.79,150.75,0.9141178]
[1746681203334,18.59200647,150.8,150.76,18.59200647]
[1746681203531,37.24165533,150.81,150.76,18.59200647]
[1746681203955,18.59200647,150.8,150.76,18.59200647]
[1746681204333,6.6317395,150.79,150.76,18.59200647]
[1746681204540,6.63042036,150.82,150.78,18.59200647]
[1746681204847,6.63042036,150.82,150.75,19.50612427]
[1746681205053,6.63042036,150.82,150.78,18.59200647]
[1746681206051,25.22242683,150.82,150.75,0.9141178]
[1746681206250,25.22242683,150.82,150.78,18.59200647]
[1746681206637,26.0,150.77,150.75,0.9141178]
[1746681207452,25.0,150.77,150.75,0.9141178]
[1746681207830,6.63305916,150.76,150.75,0.9141178]
[1746681208033,6.63305916,150.76,150.75,19.50612427]
[1746681208443,6.63305916,150.76,150.75,0.9141178]
[1746681209466,6.63086002,150.81,150.75,19.50612427]
[1746681209638,6.63086002,150.81,150.8,18.59200647]
[1746681210157,6.63052158,150.82,150.8,18.59200647]
[1746681210361,141.23000883,150.83,150.81,18.59200647]
[1746681210856,141.23000883,150.83,150.82,18.59200647]
[1746681211554,6.63000883,150.83,150.82,18.59200647]
[1746681211936,6.62910175,150.85,150.82,18.59200647]
[1746681212257,6.62910175,150.85,150.81,18.59200647]
[1746681212462,6.62910175,150.85,150.82,18.59200647]
[1746681212762,6.62910175,150.85,150.81,18.59200647]
[1746681213171,6.62874977,150.86,150.84,18.59200647]
[1746681213344,6.62874977,150.86,150.85,18.59200647]
[1746681213742,6.62874977,150.86,150.78,8.106]
[1746681213965,18.59200647,150.82,150.75,0.9141178]
[1746681214147,63.3838169,150.85,150.8,18.59200647]
[1746681214373,18.59200647,150.84,150.8,18.59200647]
[1746681214667,63.24165533,150.85,150.8,18.59200647]
[1746681215663,6.62954123,150.84,150.8,18.59200647]
[1746681216036,6.62954123,150.84,150.75,0.9141178]
[1746681216037,18.59200647,150.82,150.75,0.9141178]
[1746681216236,18.59200647,150.82,150.77,18.59200647]
[1746681216463,18.59200647,150.83,150.78,18.59200647]
[1746681216641,18.59200647,150.83,150.79,18.59200647]
[1746681217167,25.2215477,150.84,150.8,18.59200647]
[1746681218471,6.62954123,150.84,150.8,18.59200647]
[1746681218653,25.2215477,150.84,150.79,18.59200647]
[1746681219258,18.59200647,150.83,150.79,18.59200647]
[1746681219768,25.22210855,150.83,150.79,18.59200647]
[1746681220067,6.63010208,150.83,150.79,18.59200647]
[1746681220454,6.62967145,150.84,150.8,18.59200647]
[1746681220769,6.62967145,150.84,150.81,18.59200647]
[1746681220973,6.62967145,150.84,150.8,18.59200647]
[1746681223147,6.62967145,150.84,150.81,18.59200647]
[1746681223546,6.62967145,150.84,150.78,6.63189075]
[1746681223547,25.22167792,150.84,150.76,6.63305916]
[1746681223746,25.22167792,150.84,150.79,18.59200647]
[1746681224847,25.22167792,150.84,150.8,18.59200647]
[1746681225048,25.22167792,150.84,150.79,18.59200647]
[1746681225976,25.22167792,150.84,150.8,18.59200647]
[1746681226157,6.62967145,150.84,150.81,18.59200647]
[1746681226367,25.22167792,150.84,150.75,0.9141178]
[1746681226570,25.22167792,150.84,150.79,18.59200647]
[1746681227377,25.22167792,150.84,150.8,18.59200647]
[1746681227781,18.24591917,150.84,150.8,11.61624772]
[1746681228455,6.62967145,150.84,150.81,11.61624772]
[1746681228782,6.62967145,150.84,150.82,11.61624772]
[1746681228982,6.62967145,150.84,150.81,11.61624772]
[1746681229684,6.62967145,150.84,150.8,11.61624772]
[1746681231466,18.24591917,150.84,150.8,11.61624772]
[1746681234288,6.62967145,150.84,150.8,11.61624772]
[1746681236253,18.24591917,150.84,150.79,11.61624772]
[1746681237486,18.24591917,150.84,150.77,6.63246435]
[1746681237998,18.24591917,150.84,150.79,11.61624772]
[1746681238878,11.61624772,150.83,150.78,11.61624772]
[1746681239181,11.61624772,150.82,150.77,11.61624772]
[1746681240592,6.63086002,150.81,150.77,11.61624772]
[1746681240882,6.63086002,150.81,150.78,11.61624772]
[1746681244896,6.63042036,150.82,150.79,11.61624772]
[1746681245105,6.63042036,150.82,150.8,11.61624772]
[1746681246877,6.62998077,150.83,150.81,11.61624772]
[1746681247204,6.62998077,150.83,150.8,11.61624772]
[1746681247708,11.61624772,150.82,150.78,11.61624772]
[1746681247891,11.61624772,150.81,150.75,0.9141178]
[1746681248094,11.61624772,150.8,150.75,0.9141178]
[1746681248401,11.61624772,150.8,150.75,12.53036552]
[1746681248601,11.61624772,150.8,150.76,11.61624772]
[1746681248777,6.63086002,150.81,150.76,11.61624772]
[1746681249075,11.61624772,150.8,150.76,11.61624772]
[1746681250681,11.61624772,150.77,150.75,0.9141178]
[1746681250890,18.24930688,150.76,150.75,0.9141178]
[1746681253493,6.63305916,150.76,150.75,0.9141178]
[1746681253889,6.6326994,150.77,150.75,0.9141178]
[1746681254499,6.6326994,150.77,150.75,12.53036552]
[1746681254698,6.63192302,150.79,150.76,11.61624772]
[1746681255279,6.63129973,150.8,150.76,11.61624772]
[1746681255686,18.24754745,150.8,150.76,11.61624772]
[1746681256401,11.61624772,150.79,150.75,0.9141178]
[1746681256603,11.61624772,150.79,150.75,12.53036552]
[1746681257108,11.61624772,150.79,150.75,0.9141178]
[1746681257404,11.61624772,150.79,150.75,12.53036552]
[1746681257604,11.61624772,150.79,150.75,0.9141178]
[1746681257781,23.20954906,150.8,150.75,12.53036552]
[1746681257981,11.61624772,150.79,150.75,12.53036552]
[1746681258605,6.63217933,150.78,150.75,12.53036552]
[1746681258784,6.63217933,150.78,150.75,0.9141178]
[1746681258982,6.63217933,150.78,150.75,12.53036552]
[1746681260407,6.63217933,150.78,150.75,0.9141178]
[1746681260592,18.24842705,150.78,150.75,0.9141178]
[1746681262592,6.63217933,150.78,150.76,11.61624772]
[1746681262796,6.63129973,150.8,150.77,11.61624772]
[1746681263507,18.24754745,150.8,150.76,11.61624772]
[1746681264506,6.63129973,150.8,150.76,11.61624772]
[1746681264686,18.24754745,150.8,150.76,11.61624772]
[1746681264886,18.24754745,150.8,150.75,0.9141178]
[1746681265408,18.24754745,150.8,150.76,11.61624772]
[1746681266414,18.24754745,150.8,150.75,0.9141178]
[1746681266711,18.24754745,150.8,150.76,11.61624772]
[1746681271828,18.24754745,150.8,150.75,0.9141178]
[1746681271995,18.24754745,150.8,150.76,11.61624772]
[1746681272190,6.63129973,150.8,150.76,11.61624772]
[1746681272498,18.24754745,150.8,150.76,11.61624772]
[1746681275314,18.24754745,150.8,150.75,0.9141178]
[1746681275488,18.24754745,150.8,150.75,12.53036552]
[1746681276407,18.24754745,150.8,150.76,11.61624772]
[1746681277312,6.63129973,150.8,150.77,11.61624772]
[1746681279500,6.63129973,150.8,150.76,13.25784772]
[1746681279999,6.63042036,150.82,150.78,11.61624772]
[1746681280203,18.24666808,150.82,150.76,1.6416]
[1746681280409,18.24666808,150.82,150.78,11.61624772]
[1746681280609,18.2143513,150.82,150.78,11.61624772]
[1746681281294,6.59810358,150.82,150.78,11.61624772]
[1746681281506,6.62998077,150.83,150.79,11.61624772]
[1746681281701,18.24622849,150.83,150.79,11.61624772]
[1746681282918,11.61624772,150.82,150.78,11.61624772]
[1746681283095,6.62998077,150.83,150.76,1.6416]
[1746681283096,11.61624772,150.81,150.76,1.6416]
[1746681283296,11.61624772,150.81,150.76,13.25784772]
[1746681283497,11.61624772,150.8,150.76,1.6416]
[1746681283714,6.6317395,150.79,150.76,1.6416]
[1746681284115,18.24798722,150.79,150.76,1.6416]
[1746681285515,18.24798722,150.79,150.62,1.5709]
[1746681285516,18.64964886,150.72,150.62,1.5709]
[1746681285697,11.61624772,150.68,150.63,11.61624772]
[1746681286414,11.61624772,150.69,150.64,11.61624772]
[1746681287420,23.22340919,150.71,150.64,11.61624772]
[1746681287623,18.25256179,150.69,150.64,11.61624772]
[1746681288118,18.25256179,150.69,150.65,11.61624772]
[1746681288320,11.61624772,150.7,150.65,11.61624772]
[1746681288698,6.63525977,150.71,150.66,11.61624772]
[1746681289211,18.25150749,150.71,150.67,11.61624772]
[1746681291305,6.63490064,150.72,150.68,11.61624772]
[1746681292315,18.25114836,150.72,150.64,0.14216157]
[1746681292512,18.25114836,150.72,150.67,11.61624772]
[1746681294003,6.63490064,150.72,150.68,11.61624772]
[1746681294203,18.25114836,150.72,150.68,11.61624772]